fUSD/lending_fUSD_20251123
["ID","MTS","AMOUNT","RATE_DAILY","PERIOD"]
[394682911,1763874644417,-150.99,0.00033434,2]
[394682912,1763874644427,-868.27,0.00033434,90]
[394682913,1763874644436,-1276.9467,0.00033465,2]
[394682914,1763874644447,-346.0,0.00033544,2]
[394682915,1763874644457,-383.0,0.00034145,2]
[394682916,1763874644466,-379.0,0.00034213,2]
[394682917,1763874644476,-503.956,0.00034214,38]
[394682918,1763874644485,-156.714,0.00034214,38]
[394682919,1763874644495,-388.0,0.00034281,2]
[394682920,1763874644504,-240.0,0.0003435,2]
[394682921,1763874644513,-1853.0,0.00034359,2]
[394682922,1763874644523,-1201.37196212,0.00034364,2]
[394682923,1763874644532,-318.0,0.00034418,2]
[394682924,1763874644541,-1951.0,0.00034427,2]
[394682925,1763874644550,-500.0,0.00034442,5]
[394682926,1763874644560,-179.0,0.00034496,2]
[394682927,1763874644569,-470.0,0.0003453,2]
[394682928,1763874644579,-1113.0,0.00034564,2]
[394682929,1763874644588,-331.0,0.00034599,2]
[394682930,1763874644597,-728.19,0.00034619,2]
[394682931,1763874644607,-12038.96866426,0.00034647,2]
[394682932,1763874644616,-1201.3719621,0.0003509,2]
[394682933,1763874644625,-1019.4,0.00035169,2]
[394682934,1763874644634,-175.35,0.00035187,30]
[394682935,1763874644644,-320.0,0.00035422,3]
[394682936,1763874644653,-1076.0509926,0.00035653,2]
[394682937,1763874644663,-2500.0,0.00035703,2]
[394682938,1763874644673,-150.0,0.00035803,7]
[394682939,1763874644682,-150.0,0.00035803,7]
[394682940,1763874644691,-150.0,0.00035803,7]
[394682942,1763874644701,-150.0,0.00035803,7]
[394682943,1763874644711,-150.0,0.00035803,7]
[394682944,1763874644719,-150.0,0.00035803,7]
[394682945,1763874644729,-150.0,0.00035803,7]
[394682946,1763874644738,-173.99855521,0.00035803,7]
[394682947,1763874644746,-150.0,0.00035803,7]
[394682948,1763874644756,-150.4972732,0.00035803,7]
[394682949,1763874644765,-150.85392354,0.00035803,7]
[394682950,1763874644774,-150.0,0.00035803,7]
[394682951,1763874644784,-1127.86716468,0.00035803,10]
[394682952,1763874644793,-1201.3719621,0.00035816,2]
[394682953,1763874644802,-516.48518836,0.00035999,30]
[394682954,1763874644811,-1047.13,0.00036,2]
[394682955,1763874644822,-720.6154585,0.00036396,2]
[394682956,1763874644831,-1201.3719621,0.00036543,2]
[394682957,1763874644840,-1047.13,0.0003672,2]
[394682958,1763874644849,-999.0,0.00036737,3]
[394682959,1763874644858,-865.0,0.00036837,2]
[394682960,1763874644867,-865.0,0.00036837,2]
[394682961,1763874644876,-865.0,0.00036837,2]
[394682962,1763874644887,-865.0,0.00036837,2]
[394682963,1763874644899,-153.0,0.00036849,2]
[394682964,1763874644909,-849.0,0.00036852,2]
[394682965,1763874644920,-849.0,0.00036852,2]
[394682966,1763874645040,-849.0,0.00036852,2]
[394682967,1763874645067,-849.0,0.00036852,2]
[394682968,1763874645078,-153.0,0.00036865,2]
[394682969,1763874645087,-848.0,0.00036868,2]
[394682970,1763874645096,-848.0,0.00036868,2]
[394682971,1763874645105,-848.0,0.00036868,2]
[394682972,1763874645114,-848.0,0.00036868,2]
[394682974,1763874645124,-153.0,0.0003688,2]
[394682977,1763874645133,-863.0,0.00036884,2]
[394682980,1763874645143,-863.0,0.00036884,2]
[394682982,1763874645152,-863.0,0.00036884,2]
[394682984,1763874645162,-863.0,0.00036884,2]
[394682986,1763874645172,-153.0,0.00036896,2]
[394682987,1763874645181,-874.0,0.00036899,2]
[394682988,1763874645190,-874.0,0.00036899,2]
[394682989,1763874645199,-874.0,0.00036899,2]
[394682990,1763874645208,-874.0,0.00036899,2]
[394682991,1763874645217,-153.0,0.00036912,2]
[394682992,1763874645227,-153.0,0.00036927,2]
[394682993,1763874645236,-867.45,0.00037028,5]
[394682994,1763874645245,-888.96,0.00037048,5]
[394682996,1763874645254,-150.0,0.00037129,7]
[394682998,1763874645264,-172.46570799,0.000372,120]
[394682999,1763874645273,-1000.0,0.00037262,2]
[394683001,1763874645283,-1201.3719621,0.00037269,2]
[394683002,1763874645292,-1047.13,0.0003744,2]
[394683003,1763874645301,-4106.01,0.00037778,2]
[394683004,1763874645310,-150.0,0.00037792,7]
[394683005,1763874645319,-150.0,0.00037792,7]
[394683006,1763874645330,-150.0,0.00037792,7]
[394683007,1763874645339,-150.0,0.00037792,7]
[394683008,1763874645349,-150.0,0.00037792,7]
[394683009,1763874645358,-166.49,0.00037936,2]
[394683010,1763874645368,-1201.3719621,0.00037995,2]
[394683011,1763874645378,-2000.0,0.00038,2]
[394683012,1763874645387,-169.42122299,0.00038014,15]
[394683013,1763874645397,-228.75419922,0.00038014,15]
[394683014,1763874645406,-500.0,0.00038014,15]
[394683015,1763874645416,-174.80839461,0.00038014,15]
[394683016,1763874645425,-500.0,0.00038014,15]
[394683017,1763874645435,-500.0,0.00038014,15]
[394683018,1763874645445,-500.0,0.00038014,15]
[394683019,1763874645455,-500.0,0.00038014,15]
[394683020,1763874645464,-500.0,0.00038014,15]
[394683021,1763874645475,-500.0,0.00038014,15]
[394683022,1763874645485,-595.67257464,0.00038014,15]
[394683023,1763874645494,-500.0,0.00038014,15]
[394683024,1763874645504,-500.0,0.00038014,15]
[394683025,1763874645514,-500.0,0.00038014,15]
[394683026,1763874645523,-500.0,0.00038014,15]
[394683027,1763874645532,-500.0,0.00038014,15]
[394683028,1763874645542,-500.0,0.00038014,15]
[394683029,1763874645551,-500.0,0.00038014,15]
[394683030,1763874645560,-500.0,0.00038014,15]
[394683031,1763874645569,-500.0,0.00038014,15]
[394683032,1763874645583,-500.0,0.00038014,15]
[394683033,1763874645602,-500.0,0.00038014,15]
[394683034,1763874645612,-500.0,0.00038014,15]
[394683035,1763874645621,-500.0,0.00038014,15]
[394683036,1763874645630,-500.0,0.00038014,15]
[394683037,1763874645639,-500.0,0.00038014,15]
[394683038,1763874645648,-500.0,0.00038014,15]
[394683039,1763874645657,-500.0,0.00038014,15]
[394683040,1763874645666,-500.0,0.00038014,15]
[394683042,1763874645676,-500.0,0.00038014,15]
[394683043,1763874645684,-5000.0,0.00038015,2]
[394683044,1763874645694,-1000.0,0.00038064,2]
[394683045,1763874645703,-500.0,0.00038159,2]
[394683046,1763874645712,-1047.13,0.0003816,2]
[394683047,1763874645721,-500.0,0.00038356,8]
[394683048,1763874645730,-500.0,0.00038356,8]
[394683049,1763874645739,-500.0,0.00038356,8]
[394683050,1763874645749,-500.0,0.00038356,8]
[394683051,1763874645758,-500.0,0.00038356,8]
[394683052,1763874645767,-500.0,0.00038356,8]
[394683053,1763874645776,-500.0,0.00038356,8]
[394683054,1763874645785,-500.0,0.00038356,8]
[394683055,1763874645795,-500.0,0.00038356,8]
[394683056,1763874645805,-500.0,0.00038356,8]
[394683057,1763874645814,-500.0,0.00038356,8]
[394683058,1763874645824,-500.0,0.00038356,8]
[394683059,1763874645833,-500.0,0.00038356,8]
[394683060,1763874645843,-500.0,0.00038356,8]
[394683061,1763874645852,-500.0,0.00038356,8]
[394683062,1763874645861,-500.0,0.00038356,8]
[394683063,1763874645871,-500.0,0.00038356,8]
[394683064,1763874645881,-500.0,0.00038356,8]
[394683065,1763874645891,-500.0,0.00038356,8]
[394683066,1763874645903,-1066.5,0.00038356,8]
[394683067,1763874645915,-500.0,0.00038356,8]
[394683068,1763874645926,-500.0,0.00038356,8]
[394683069,1763874645935,-500.0,0.00038356,8]
[394683070,1763874645946,-500.0,0.00038356,8]
[394683071,1763874645954,-468.94443916,0.00038356,8]
[394683072,1763874645967,-709.44556084,0.00038356,8]
[394683073,1763874645977,-500.0,0.00038356,8]
[394683074,1763874645986,-500.0,0.00038356,8]
[394683075,1763874645994,-500.0,0.00038356,8]
[394683076,1763874646004,-500.0,0.00038356,8]
[394683077,1763874646013,-500.0,0.00038356,8]
[394683078,1763874646022,-500.0,0.00038356,8]
[394683079,1763874646032,-520.8688655,0.00038356,8]
[394683080,1763874646042,-500.0,0.00038356,8]
[394683081,1763874646051,-500.0,0.00038356,8]
[394683082,1763874646060,-500.0,0.00038356,8]
[394683083,1763874646069,-625.79,0.00038356,8]
[394683084,1763874646079,-500.0,0.00038356,8]
[394683085,1763874646087,-594.31,0.00038356,8]
[394683086,1763874646096,-500.0,0.00038356,8]
[394683087,1763874646105,-500.0,0.00038356,8]
[394683088,1763874646116,-387.45733037,0.00038356,2]
[394683089,1763874646127,-150.0,0.00038356,5]
[394683090,1763874646136,-150.0,0.00038455,7]
[394683091,1763874646145,-890.18,0.00038586,5]
[394683092,1763874646154,-890.68,0.00038591,5]
[394683093,1763874646163,-866.46,0.00038598,5]
[394683094,1763874646172,-881.41,0.00038607,5]
[394683095,1763874646181,-877.76,0.00038617,5]
[394683096,1763874646191,-879.58,0.00038628,5]
[394683097,1763874646200,-858.74,0.00038628,5]
[394683098,1763874646210,-500.0,0.0003863,8]
[394683099,1763874646219,-500.0,0.0003863,8]
[394683100,1763874646229,-500.0,0.0003863,8]
[394683101,1763874646238,-561.40232148,0.0003863,8]
[394683102,1763874646247,-500.0,0.0003863,8]
[394683103,1763874646257,-500.0,0.0003863,8]
[394683104,1763874646266,-517.20092959,0.0003863,8]
[394683105,1763874646275,-500.0,0.0003863,8]
[394683106,1763874646285,-500.0,0.0003863,8]
[394683107,1763874646293,-500.0,0.0003863,8]
[394683108,1763874646303,-500.0,0.0003863,8]
[394683109,1763874646312,-577.58366398,0.0003863,8]
[394683110,1763874646321,-500.0,0.0003863,8]
[394683111,1763874646331,-500.0,0.0003863,8]
[394683112,1763874646340,-500.0,0.0003863,8]
[394683113,1763874646349,-500.0,0.0003863,8]
[394683114,1763874646358,-500.0,0.0003863,8]
[394683115,1763874646367,-500.0,0.0003863,8]
[394683116,1763874646377,-500.0,0.0003863,8]
[394683117,1763874646387,-1066.5,0.0003863,8]
[394683118,1763874646396,-500.0,0.0003863,8]
[394683119,1763874646406,-500.0,0.0003863,8]
[394683120,1763874646415,-500.0,0.0003863,8]
[394683121,1763874646424,-500.0,0.0003863,8]
[394683122,1763874646434,-1178.39,0.0003863,8]
[394683123,1763874646443,-500.0,0.0003863,8]
[394683124,1763874646452,-500.0,0.0003863,8]
[394683125,1763874646461,-500.0,0.0003863,8]
[394683126,1763874646471,-500.0,0.0003863,8]
[394683127,1763874646480,-500.0,0.0003863,8]
[394683128,1763874646490,-500.0,0.0003863,8]
[394683129,1763874646499,-500.0,0.0003863,8]
[394683130,1763874646509,-500.0,0.0003863,8]
[394683132,1763874646519,-500.0,0.0003863,8]
[394683134,1763874646528,-625.79,0.0003863,8]
[394683135,1763874646537,-500.0,0.0003863,8]
[394683136,1763874646546,-594.31,0.0003863,8]
[394683137,1763874646555,-500.0,0.0003863,8]
[394683138,1763874646564,-500.0,0.0003863,8]
[394683139,1763874646573,-884.06,0.00038642,5]
[394683140,1763874646582,-468.68,0.00038644,2]
[394683141,1763874646591,-1000.0,0.00038657,120]
[394683142,1763874646603,-1201.3719621,0.00038721,2]
[394683143,1763874646613,-880.84,0.00038841,5]
[394683144,1763874646622,-1047.13,0.0003888,2]
[394683145,1763874646631,-670.0,0.000389,5]
[394683146,1763874646640,-882.54,0.000389,5]
[394683147,1763874646649,-500.0,0.00038904,8]
[394683148,1763874646770,-500.0,0.00038904,8]
[394683149,1763874646781,-500.0,0.00038904,8]
[394683150,1763874646790,-500.0,0.00038904,8]
[394683151,1763874646800,-500.0,0.00038904,8]
[394683152,1763874646811,-500.0,0.00038904,8]
[394683153,1763874646822,-565.15483484,0.00038904,8]
[394683154,1763874646831,-500.0,0.00038904,8]
[394683155,1763874646840,-500.0,0.00038904,8]
[394683156,1763874646849,-500.0,0.00038904,8]
[394683157,1763874646858,-500.0,0.00038904,8]
[394683158,1763874646867,-500.0,0.00038904,8]
[394683159,1763874646877,-565.20354936,0.00038904,8]
[394683160,1763874646890,-500.0,0.00038904,8]
[394683161,1763874646902,-500.0,0.00038904,8]
[394683162,1763874646923,-500.0,0.00038904,8]
[394683163,1763874646943,-1066.5,0.00038904,8]
[394683164,1763874646955,-500.0,0.00038904,8]
[394683165,1763874646964,-500.0,0.00038904,8]
[394683166,1763874646974,-500.0,0.00038904,8]
[394683167,1763874646984,-500.0,0.00038904,8]
[394683168,1763874646993,-1178.39,0.00038904,8]
[394683169,1763874647003,-500.0,0.00038904,8]
[394683170,1763874647012,-500.0,0.00038904,8]
[394683171,1763874647021,-500.0,0.00038904,8]
[394683172,1763874647030,-387.55017648,0.00038904,8]
[394683173,1763874647039,-500.0,0.00038904,8]
[394683174,1763874647047,-500.0,0.00038904,8]
[394683175,1763874647058,-500.0,0.00038904,8]
[394683176,1763874647067,-500.0,0.00038904,8]
[394683177,1763874647077,-625.79,0.00038904,8]
[394683178,1763874647086,-500.0,0.00038904,8]
[394683179,1763874647096,-594.31,0.00038904,8]
[394683180,1763874647105,-593.71740451,0.00038904,8]
[394683181,1763874647115,-500.0,0.00038904,8]
[394683182,1763874647125,-885.09,0.00039,5]
[394683183,1763874647136,-1000.0,0.00039,30]
[394683184,1763874647146,-191.4,0.00039168,2]
[394683185,1763874647156,-500.0,0.00039178,8]
[394683186,1763874647165,-500.0,0.00039178,8]
[394683187,1763874647175,-500.0,0.00039178,8]
[394683188,1763874647184,-500.0,0.00039178,8]
[394683189,1763874647194,-500.0,0.00039178,8]
[394683190,1763874647205,-582.87309425,0.00039178,8]
[394683191,1763874647214,-500.0,0.00039178,8]
[394683192,1763874647223,-500.0,0.00039178,8]
[394683193,1763874647233,-500.0,0.00039178,8]
[394683194,1763874647242,-500.0,0.00039178,8]
[394683196,1763874647251,-500.0,0.00039178,8]
[394683197,1763874647260,-500.0,0.00039178,8]
[394683200,1763874647270,-500.0,0.00039178,8]
[394683201,1763874647279,-500.0,0.00039178,8]
[394683203,1763874647287,-1066.5,0.00039178,8]
[394683204,1763874647297,-500.0,0.00039178,8]
[394683205,1763874647306,-348.62155287,0.00039178,8]
[394683206,1763874647315,-500.0,0.00039178,8]
[394683207,1763874647326,-500.0,0.00039178,8]
[394683208,1763874647335,-1178.39,0.00039178,8]
[394683209,1763874647344,-500.0,0.00039178,8]
[394683210,1763874647353,-500.0,0.00039178,8]
[394683211,1763874647363,-409.66460947,0.00039178,8]
[394683212,1763874647372,-500.0,0.00039178,8]
[394683213,1763874647381,-500.0,0.00039178,8]
[394683214,1763874647390,-500.0,0.00039178,8]
[394683215,1763874647399,-510.05407165,0.00039178,8]
[394683216,1763874647409,-625.79,0.00039178,8]
[394683217,1763874647419,-500.0,0.00039178,8]
[394683218,1763874647428,-594.31,0.00039178,8]
[394683219,1763874647438,-500.0,0.00039178,8]
[394683220,1763874647447,-1000.0,0.00039178,120]
[394683221,1763874647457,-166.49,0.00039189,2]
[394683222,1763874647467,-1000.0,0.00039194,120]
[394683223,1763874647477,-1000.0,0.0003921,120]
[394683224,1763874647488,-704.79,0.00039226,30]
[394683225,1763874647498,-500.0,0.00039226,8]
[394683226,1763874647507,-500.0,0.00039226,8]
[394683227,1763874647516,-500.0,0.00039226,8]
[394683228,1763874647532,-500.0,0.00039226,8]
[394683229,1763874647551,-500.0,0.00039226,8]
[394683230,1763874647569,-500.0,0.00039226,8]
[394683231,1763874647589,-500.0,0.00039226,8]
[394683232,1763874647605,-500.0,0.00039226,8]
[394683233,1763874647621,-500.0,0.00039226,8]
[394683234,1763874647639,-500.0,0.00039226,8]
[394683235,1763874647657,-974.42,0.00039226,8]
[394683236,1763874647675,-500.0,0.00039226,8]
[394683237,1763874647692,-1461.69,0.00039226,8]
[394683238,1763874647709,-164.06885092,0.00039226,8]
[394683239,1763874647726,-994.3,0.00039226,8]
[394683240,1763874647739,-500.0,0.00039226,8]
[394683241,1763874647756,-500.0,0.00039226,8]
[394683242,1763874647770,-775.59,0.00039226,8]
[394683243,1763874647784,-500.0,0.00039226,8]
[394683244,1763874647800,-500.0,0.00039226,8]
[394683245,1763874647814,-500.0,0.00039226,8]
[394683246,1763874647828,-500.0,0.00039226,8]
[394683247,1763874647848,-927.44,0.00039226,8]
[394683248,1763874647861,-500.0,0.00039226,8]
[394683249,1763874647875,-500.0,0.00039226,8]
[394683250,1763874647893,-1482.93,0.00039226,8]
[394683251,1763874647908,-500.0,0.00039226,8]
[394683252,1763874647923,-703.74,0.00039226,8]
[394683253,1763874647944,-1044.73,0.00039226,8]
[394683254,1763874647963,-500.0,0.00039226,8]
[394683255,1763874647976,-500.0,0.00039226,8]
[394683256,1763874647991,-1000.0,0.00039226,120]
[394683257,1763874648005,-1000.0,0.00039243,120]
[394683258,1763874648019,-1000.0,0.00039259,120]
[394683259,1763874648033,-1000.0,0.00039275,120]
[394683260,1763874648051,-1000.0,0.00039291,120]
[394683261,1763874648065,-1000.0,0.00039307,120]
[394683262,1763874648081,-1000.0,0.00039323,120]
[394683263,1763874648095,-1000.0,0.00039339,120]
[394683264,1763874648109,-306.6,0.0003934,14]
[394683265,1763874648124,-1000.0,0.00039355,120]
[394683266,1763874648139,-1210.76,0.0003937,2]
[394683267,1763874648155,-1000.0,0.00039371,120]
[394683268,1763874648171,-1000.0,0.00039388,120]
[394683269,1763874648186,-1729.71559341,0.00039399,2]
[394683270,1763874648201,-157.92533726,0.00039399,15]
[394683271,1763874648215,-1000.0,0.00039404,120]
[394683272,1763874648229,-216.58979032,0.00039407,4]
[394683273,1763874648244,-150.0,0.00039411,2]
[394683274,1763874648259,-150.0,0.00039411,2]
[394683275,1763874648273,-150.0,0.00039411,2]
[394683276,1763874648292,-1000.0,0.00039417,2]
[394683277,1763874648307,-1000.0,0.0003942,120]
[394683278,1763874648323,-1000.0,0.00039436,120]
[394683279,1763874648337,-1201.3719621,0.00039448,2]
[394683280,1763874648352,-500.0,0.00039452,8]
[394683281,1763874648367,-500.0,0.00039452,8]
[394683282,1763874648381,-500.0,0.00039452,8]
[394683283,1763874648395,-500.0,0.00039452,8]
[394683284,1763874648409,-500.0,0.00039452,8]
[394683285,1763874648424,-500.0,0.00039452,8]
[394683286,1763874648439,-500.0,0.00039452,8]
[394683287,1763874648454,-500.0,0.00039452,8]
[394683288,1763874648469,-500.0,0.00039452,8]
[394683289,1763874648484,-500.0,0.00039452,8]
[394683290,1763874648497,-500.0,0.00039452,8]
[394683291,1763874648512,-500.0,0.00039452,8]
[394683292,1763874648526,-500.0,0.00039452,8]
[394683293,1763874648541,-1066.5,0.00039452,8]
[394683294,1763874648556,-500.0,0.00039452,8]
[394683295,1763874648570,-500.0,0.00039452,8]
[394683296,1763874648584,-500.0,0.00039452,8]
[394683297,1763874648598,-1178.39,0.00039452,8]
[394683298,1763874648612,-500.0,0.00039452,8]
[394683299,1763874648626,-500.0,0.00039452,8]
[394683300,1763874648640,-500.0,0.00039452,8]
[394683301,1763874648655,-500.0,0.00039452,8]
[394683302,1763874648671,-264.20367932,0.00039452,8]
[394683303,1763874648685,-625.79,0.00039452,8]
[394683304,1763874648700,-500.0,0.00039452,8]
[394683305,1763874648711,-594.31,0.00039452,8]
[394683306,1763874648889,-500.0,0.00039452,8]
[394683307,1763874648914,-1000.0,0.00039452,120]
[394683308,1763874648930,-1000.0,0.00039468,120]
[394683309,1763874648939,-1000.0,0.00039484,120]
[394683310,1763874648950,-866.35916128,0.00039489,4]
[394683311,1763874648959,-216.58979032,0.0003949,4]
[394683312,1763874648969,-500.0,0.00039499,120]
[394683313,1763874648979,-500.0,0.00039499,30]
[394683314,1763874648990,-500.0,0.00039499,120]
[394683315,1763874648999,-522.82513795,0.00039499,120]
[394683316,1763874649009,-500.0,0.00039499,8]
[394683317,1763874649019,-503.70869154,0.00039499,8]
[394683318,1763874649029,-500.0,0.00039499,8]
[394683319,1763874649040,-500.0,0.00039499,8]
[394683320,1763874649050,-500.0,0.00039499,8]
[394683321,1763874649061,-500.0,0.00039499,8]
[394683322,1763874649070,-500.0,0.00039499,8]
[394683323,1763874649080,-500.0,0.00039499,8]
[394683324,1763874649088,-501.99,0.00039499,8]
[394683325,1763874649098,-523.4709752,0.00039499,8]
[394683326,1763874649107,-500.0,0.00039499,8]
[394683327,1763874649116,-500.0,0.00039499,8]
[394683328,1763874649125,-500.0,0.00039499,8]
[394683329,1763874649136,-500.0,0.00039499,8]
[394683330,1763874649153,-161.50547603,0.00039499,8]
[394683331,1763874649162,-618.09,0.00039499,8]
[394683332,1763874649171,-500.0,0.00039499,8]
[394683333,1763874649180,-500.0,0.00039499,8]
[394683334,1763874649189,-500.0,0.00039499,8]
[394683335,1763874649198,-500.0,0.00039499,8]
[394683336,1763874649207,-500.0,0.00039499,8]
[394683337,1763874649216,-500.0,0.00039499,8]
[394683338,1763874649225,-500.0,0.00039499,8]
[394683339,1763874649234,-291.853667,0.00039499,8]
[394683340,1763874649675,-208.146333,0.00039499,8]
[394683341,1763874649685,-474.05039428,0.00039499,8]
[394683342,1763874649793,-25.94960572,0.00039499,8]
[394683343,1763874649803,-342.83995675,0.00039499,8]
[394683344,1763874649814,-157.16004325,0.00039499,8]
[394683345,1763874649826,-500.0,0.00039499,8]
[394683346,1763874649836,-140.64144961,0.00039499,8]
[394683347,1763874649848,-324.7174289,0.00039499,8]
[394683348,1763874649941,-34.64112149,0.00039499,8]
[394683349,1763874649950,-227.85887951,0.00039499,8]
[394683350,1763874649965,-272.14112049,0.00039499,8]
[394683351,1763874649979,-500.0,0.00039499,8]
[394683352,1763874649990,-500.0,0.00039499,8]
[394683353,1763874649999,-519.59007519,0.00039499,8]
[394683354,1763874650009,-117.96081077,0.00039499,8]
[394683355,1763874650020,-382.03918923,0.00039499,8]
[394683356,1763874650029,-17.34604284,0.00039499,8]
[394683366,1763875510502,620.82248704,0.000154,2]
[394683367,1763875510525,620.82248704,0.000154,2]
[394683368,1763875510548,620.82248704,0.000154,2]
[394683369,1763875510571,620.82248704,0.000154,2]
[394683370,1763875510594,620.82248704,0.000154,2]
[394683371,1763875510617,620.82248704,0.000154,2]
[394683372,1763875510640,620.82248704,0.000154,2]
[394683373,1763875510662,620.82248704,0.000154,2]
[394683374,1763875510685,620.82248704,0.000154,2]
[394683375,1763875510708,620.82248704,0.000154,2]
[394683398,1763875831999,-879.1401216,0.000154,2]
[394683399,1763875832058,-1282.38021065,0.000154,2]
[394683400,1763875832226,-1459.55235854,0.000154,2]
[394683401,1763875832236,-300.0,0.00016199,2]
[394683402,1763875832249,-9128.4343943,0.000162,5]
[394683403,1763875832260,-300.0,0.0001694,2]
[394683404,1763875832270,-300.51454079,0.0001694,2]
[394683405,1763875832280,-300.0,0.0001694,2]
[394683406,1763875832292,-373.60999068,0.0001694,2]
[394683407,1763875832302,-162.47,0.00016982,2]
[394683408,1763875832311,-287.11,0.0001699,2]
[394683409,1763875832322,-303.50871569,0.00016999,2]
[394683410,1763875832333,-196.49128431,0.00016999,2]
[394683412,1763875832342,-191.35910006,0.00016999,2]
[394683414,1763875832351,-494.24705733,0.00016999,2]
[394683423,1763875838090,-5.75294267,0.00016999,2]
[394683424,1763875838100,-500.0,0.00016999,2]
[394683425,1763875838110,-478.57017685,0.00016999,2]
[394683426,1763875838120,-250.0,0.00017,2]
[394683427,1763875838129,-576.83688048,0.00017,2]
[394683428,1763875838140,-3234.24970126,0.00017,2]
[394683429,1763875838155,-625.89475458,0.00017,2]
[394683430,1763875838179,-749.9999998,0.00017,2]
[394683439,1763875840036,-1930.73770265,0.00017,2]
[394683440,1763875840098,-390295.51349972,0.00017,2]
[394683441,1763875840107,-500.0,0.00017999,2]
[394683442,1763875840117,-232.88600608,0.00017999,2]
[394683443,1763875840127,-342.35827232,0.00017999,2]
[394683444,1763875840137,-199.15891705,0.00017999,2]
[394683445,1763875840147,-500.0,0.00017999,2]
[394683446,1763875840156,-98523.13499794,0.00018,2]
[394683447,1763875840165,-426.78462315,0.00019484,2]
[394683448,1763875840175,-518.49455671,0.0002,5]
[394683449,1763875840184,-506.50109357,0.0002,20]
[394683450,1763875840193,-162.47,0.00020378,2]
[394683451,1763875840202,-159.81,0.00022,14]
[394683452,1763875840212,-163.18916229,0.00022988,2]
[394683453,1763875840221,-173.0,0.00023027,2]
[394683454,1763875840230,-243.0,0.00023073,2]
[394683455,1763875840240,-158.0,0.00023119,2]
[394683456,1763875840251,-431.0,0.00023165,2]
[394683457,1763875840260,-181.0,0.00023211,2]
[394683458,1763875840269,-162.47,0.00023775,2]
[394683459,1763875840278,-500.0,0.00024932,2]
[394683460,1763875840287,-500.0,0.00024932,2]
[394683461,1763875840297,-500.0,0.00024932,2]
[394683462,1763875840306,-168.88323264,0.00025,5]
[394683463,1763875840315,-1601.0,0.00025747,2]
[394683464,1763875840325,-822.0,0.00025747,2]
[394683465,1763875840335,-1256.0,0.00025747,2]
[394683466,1763875840344,-794.0,0.00025747,2]
[394683467,1763875840353,-908.373,0.00025747,2]
[394683468,1763875840362,-392.46556876,0.00025747,2]
[394683469,1763875840382,-801.71443124,0.00025747,2]
[394683470,1763875840392,-2757.555,0.00025747,2]
[394683471,1763875840401,-1320.0,0.00025747,2]
[394683472,1763875840411,-575.0,0.00025747,2]
[394683473,1763875840420,-3436.0,0.00025747,2]
[394683474,1763875840430,-162.47,0.00027171,2]
[394683475,1763875840439,-4381.12721611,0.00027245,2]
[394683476,1763875840463,-14972.66278389,0.00027245,2]
[394683477,1763875840474,-795.92962124,0.00028,2]
[394683478,1763875840483,-908.0,0.00028747,2]